bitfinex/quotes_ETHUSD_20251218
["timestamp","ask_amount","ask_price","bid_price","bid_amount"]
[1766030037142,5.2026,2833.7,2833.3,0.002]
[1766030038896,5.2026,2833.6,2833.3,0.002]
[1766030039095,3.9894,2833.5,2833.3,0.002]
[1766030039955,5.2026,2833.5,2833.3,0.002]
[1766030040689,5.2026,2833.7,2833.3,0.002]
[1766030041361,3.9894,2833.6,2833.3,0.002]
[1766030041550,1.2132,2833.5,2833.3,0.002]
[1766030041753,5.2026,2833.5,2833.3,0.002]
[1766030041951,0.96886368,2833.8,2833.3,0.002]
[1766030042265,3.9894,2833.7,2833.3,0.002]
[1766030042590,5.2026,2833.7,2833.3,0.002]
[1766030042767,0.96886368,2833.8,2833.3,0.002]
[1766030042969,5.2026,2833.7,2833.3,0.002]
[1766030046161,3.9894,2833.7,2833.3,0.002]
[1766030046359,5.2026,2833.6,2833.3,0.002]
[1766030048362,5.2026,2833.7,2833.3,0.002]
[1766030050113,0.96886368,2833.8,2833.3,0.002]
[1766030050259,0.46438023,2834.3,2833.6,0.02117597]
[1766030050584,0.46438023,2834.3,2833.8,0.02117597]
[1766030052391,0.46438023,2834.2,2833.8,0.02117597]
[1766030056612,3.9827,2834.1,2833.7,0.54130021]
[1766030056781,5.1899,2834.0,2833.6,0.02117597]
[1766030056981,5.1899,2834.0,2833.5,0.558]
[1766030056982,5.1899,2833.9,2833.5,0.558]
[1766030057299,3.99246377,2834.4,2833.5,0.558]
[1766030057603,5.1899,2834.1,2833.5,0.558]
[1766030059404,0.46438023,2834.3,2833.6,0.02117597]
[1766030059576,0.46438023,2834.4,2833.6,0.02117597]
[1766030059777,0.001,2834.0,2833.7,0.4108368]
[1766030059976,5.65428023,2834.4,2833.7,0.4108368]
[1766030061292,5.65428023,2834.4,2833.6,0.02117597]
[1766030061495,9.18240659,2834.4,2833.6,0.02117597]
[1766030061794,1.2072,2834.3,2833.6,0.02117597]
[1766030062410,0.46438023,2834.2,2833.6,0.02117597]
[1766030067889,1.2072,2834.2,2833.6,0.02117597]
[1766030068089,0.46438023,2834.3,2833.6,0.6876583]
[1766030068320,5.1899,2834.2,2833.6,0.6876583]
[1766030069021,1.2072,2834.1,2833.6,0.02117597]
[1766030069320,0.46438023,2834.3,2833.6,0.02117597]
[1766030069536,1.2072,2834.1,2833.6,0.02117597]
[1766030069703,5.1899,2834.0,2833.6,0.02117597]
[1766030072694,1.2072,2833.9,2833.6,0.02117597]
[1766030073094,5.1899,2833.9,2833.6,0.02117597]
[1766030077419,3.9827,2833.9,2833.5,0.56]
[1766030077622,1.2072,2833.4,2833.3,0.002]
[1766030077819,5.1899,2833.4,2833.3,0.002]
[1766030078321,0.558,2834.0,2833.3,0.002]
[1766030078493,5.1899,2834.1,2833.4,6.06247136]
[1766030078688,0.558,2833.9,2833.4,6.08364733]
[1766030078920,0.558,2834.1,2833.6,0.02117597]
[1766030079224,5.1899,2834.0,2833.6,6.08364733]
[1766030079520,5.79571969,2834.3,2833.8,6.06247136]
[1766030079692,1.02338023,2834.4,2833.8,6.06247136]
[1766030079891,6.21328023,2834.4,2833.8,6.06247136]
[1766030080094,9.74137716,2834.4,2833.6,6.08364733]
[1766030080305,9.74137716,2834.4,2833.8,0.02117597]
[1766030080515,0.46438023,2834.2,2833.8,0.02117597]
[1766030080701,5.1899,2834.2,2833.8,0.02117597]
[1766030083212,5.294,2834.2,2833.8,0.02117597]
[1766030084529,5.295,2834.2,2833.8,0.02117597]
[1766030084731,0.001,2834.2,2833.8,0.02117597]
[1766030085029,0.001,2834.2,2833.8,0.6316583]
[1766030085408,0.001,2834.2,2833.8,0.61048233]
[1766030085709,0.46538023,2834.2,2833.6,0.02117597]
[1766030085908,0.001,2834.2,2833.9,6.06247136]
[1766030086113,0.001,2834.4,2834.0,0.02117597]
[1766030087426,0.46438023,2834.3,2834.0,0.02117597]
[1766030087834,0.001,2834.4,2834.0,0.02117597]
[1766030088242,0.46538023,2834.4,2834.0,0.02117597]
[1766030089811,0.001,2834.4,2834.0,0.02117597]
[1766030092841,0.46438023,2834.2,2834.0,0.02117597]
[1766030093432,0.46438023,2834.3,2834.0,0.02117597]
[1766030093753,0.001,2834.4,2834.0,0.02117597]
[1766030099654,0.46438023,2834.6,2834.0,0.62942368]
[1766030099824,1.02238023,2834.6,2834.0,0.62942368]
[1766030100151,0.558,2834.6,2834.2,0.02117597]
[1766030100327,5.852,2834.6,2834.2,0.02117597]
[1766030101049,0.001,2834.4,2834.2,0.02117597]
[1766030101548,0.001,2834.4,2833.9,0.02117597]
[1766030101886,5.294,2834.8,2834.1,6.06130111]
[1766030102142,5.294,2834.8,2834.2,0.02117597]
[1766030102143,1.06061222,2834.7,2834.2,0.02117597]
[1766030102453,2.70449704,2834.8,2834.2,0.02117597]
[1766030102817,7.99849704,2834.8,2834.2,0.02117597]
[1766030103219,0.001,2834.9,2834.3,6.06130111]
[1766030103420,0.558,2835.0,2834.5,6.06130111]
[1766030103731,1.06144726,2835.1,2834.5,6.06130111]
[1766030104056,6.35544726,2835.1,2834.3,6.08247708]
[1766030104254,0.46438023,2835.0,2834.4,0.60824771]
[1766030105248,9.88267203,2835.1,2834.4,0.60824771]
[1766030105249,1.06144726,2835.1,2834.5,0.02117597]
[1766030106160,0.001,2835.1,2834.5,0.02117597]
[1766030111937,1.06143226,2835.1,2834.5,0.02117597]
[1766030113452,1.06143226,2835.1,2834.7,0.02117597]
[1766030113764,1.2583,2835.6,2834.7,6.61930111]
[1766030114062,1.06026736,2835.5,2834.8,0.68310608]
[1766030115868,0.001,2835.1,2834.8,0.68310608]
[1766030118088,1.06026736,2835.5,2835.0,0.02117597]
[1766030118377,1.06122239,2835.6,2835.0,0.02117597]
[1766030118547,1.06122239,2835.6,2835.1,6.06130111]
[1766030118750,0.001,2835.6,2835.0,0.79739843]
[1766030119338,0.001,2835.6,2835.1,0.558]
[1766030121153,0.001,2835.6,2835.2,0.02117597]
[1766030122356,0.001,2835.6,2835.1,0.558]
[1766030124848,0.001,2835.6,2835.2,0.02117597]
[1766030126568,1.06115495,2835.8,2835.2,0.02117597]
[1766030127287,1.06115495,2835.8,2835.2,0.51156259]
[1766030128082,0.46538023,2836.0,2835.3,0.02117597]
[1766030128289,9.61528298,2836.0,2835.3,0.02117597]
[1766030128582,3.99148298,2836.0,2835.3,0.02117597]
[1766030128788,5.6238,2835.9,2835.3,0.02117597]
[1766030129493,5.6238,2835.9,2835.3,0.48085177]
[1766030136167,5.6238,2835.9,2835.3,0.02117597]
[1766030136515,0.001,2836.2,2835.5,0.02117597]
[1766030136665,0.001,2836.2,2835.6,0.558]
[1766030137502,0.001,2836.2,2835.7,1.05992273]
[1766030138801,5.6238,2835.8,2835.4,0.02117597]
[1766030138960,5.6238,2835.8,2835.3,1.61692273]
[1766030139159,0.001,2835.9,2835.3,1.61692273]
[1766030139475,5.6248,2835.9,2835.3,1.61692273]
[1766030141392,0.001,2836.2,2835.6,0.02117597]
[1766030141574,0.001,2836.2,2835.6,6.07723805]
[1766030141773,0.001,2836.2,2835.7,1.16472381]
[1766030142670,0.001,2836.5,2835.7,4.69118149]
[1766030143090,0.001,2836.5,2836.0,0.02117597]
[1766030143771,0.46438023,2836.4,2836.0,0.02117597]
[1766030143973,0.46438023,2836.4,2835.8,0.02117597]
[1766030151306,0.46438023,2836.4,2835.8,1.0810987]
[1766030151687,4.2322,2836.3,2835.8,1.05992273]
[1766030151894,5.5031,2836.2,2835.8,1.0810987]
[1766030153790,0.001,2836.5,2835.8,1.0810987]
[1766030153997,0.46538023,2836.5,2836.0,0.02117597]
[1766030154499,1.2709,2836.4,2836.0,0.02117597]
[1766030154894,1.2719,2836.4,2836.0,0.02117597]
[1766030155210,0.001,2836.4,2836.0,0.02117597]
[1766030161322,0.001,2836.4,2835.8,1.0830987]
[1766030161323,0.001,2836.5,2836.1,0.02117597]
[1766030162519,4.2322,2836.3,2836.0,1.05985532]
[1766030162718,4.2322,2836.2,2836.0,1.05985532]
[1766030162934,1.2709,2836.1,2835.8,0.002]
[1766030163097,4.2322,2836.3,2835.8,1.06192273]
[1766030163098,5.5031,2836.3,2835.8,1.06192273]
[1766030163613,0.001,2836.5,2835.8,1.0830987]
[1766030163793,0.001,2836.5,2835.8,1.06192273]
[1766030163991,1.2709,2836.1,2835.8,1.06192273]
[1766030164300,0.001,2836.5,2835.8,0.002]
[1766030164493,5.5031,2836.4,2835.8,1.06192273]
[1766030164895,3.52647856,2836.5,2835.8,1.06192273]
[1766030165089,5.5031,2836.4,2835.8,1.06192273]
[1766030166114,4.2322,2836.4,2835.8,1.06192273]
[1766030166316,4.2322,2836.2,2835.8,1.06192273]
[1766030166523,5.5031,2836.2,2835.8,1.06192273]
[1766030166822,5.5031,2836.4,2835.8,1.06192273]
[1766030167634,0.001,2836.5,2835.8,1.52288932]
[1766030167922,0.001,2836.5,2835.9,0.57817597]
[1766030168125,0.001,2836.5,2836.1,0.02117597]
[1766030169403,0.46538023,2836.7,2836.1,0.02117597]
[1766030170196,0.001,2836.5,2836.1,0.02117597]
[1766030170524,0.001,2836.8,2836.4,0.02117597]
[1766030170702,0.001,2836.8,2836.1,3.97383179]
[1766030170892,0.001,2836.8,2836.3,0.02117597]
[1766030171093,0.001,2836.8,2836.4,0.557]
[1766030171297,1.1547,2836.8,2836.4,0.557]
[1766030171499,5.2864,2836.7,2836.4,1.61668311]
[1766030171698,5.2864,2836.7,2836.4,0.557]
[1766030172199,5.2864,2836.7,2836.3,1.08088903]
[1766030172200,0.001,2836.8,2836.3,1.05971306]
[1766030172430,4.2441,2836.7,2836.2,0.557]
[1766030172731,1.1858,2836.6,2836.2,0.557]
[1766030173026,5.4299,2836.5,2836.1,0.02117597]
[1766030173234,5.4309,2836.8,2836.1,0.02117597]
[1766030176529,0.001,2836.8,2836.1,0.02117597]
[1766030176734,3.87891481,2836.8,2836.1,0.02117597]
[1766030177028,5.4299,2836.7,2836.1,0.02117597]
[1766030179027,3.87890084,2836.8,2836.1,0.02117597]
[1766030179220,1.1858,2836.6,2836.1,0.02117597]
[1766030179421,5.4299,2836.6,2836.1,0.02117597]
[1766030181528,0.35379751,2836.8,2836.1,0.02117597]
[1766030181731,0.38798325,2836.7,2835.8,0.002]
[1766030182104,1.1858,2836.5,2835.8,0.002]
[1766030182330,5.4299,2836.4,2835.8,0.002]
[1766030182523,0.38798325,2836.7,2835.8,0.002]
[1766030182719,1.1858,2836.4,2835.8,0.002]
[1766030182905,0.77920044,2836.6,2835.8,0.002]
[1766030183240,1.1858,2836.4,2835.8,0.002]
[1766030183533,5.4299,2836.3,2835.8,0.002]
[1766030184515,5.4299,2836.5,2835.8,0.002]
[1766030184715,2.03760896,2836.5,2835.8,0.002]
[1766030185436,5.4299,2836.5,2835.8,0.002]
[1766030185629,3.52641038,2836.6,2835.8,0.002]
[1766030185933,1.1858,2836.4,2835.8,0.002]
[1766030186134,3.52641038,2836.6,2835.8,0.002]
[1766030186311,4.2441,2836.5,2835.8,0.002]
[1766030186637,5.4299,2836.5,2835.8,0.002]
[1766030186813,5.4299,2836.5,2835.8,0.41266244]
[1766030188330,5.4299,2836.5,2835.9,0.02117597]
[1766030189839,0.001,2836.6,2835.9,0.02117597]
[1766030190833,0.001,2836.6,2836.1,0.02117597]
[1766030191539,5.4309,2836.6,2836.1,0.02117597]
[1766030191742,0.001,2836.5,2836.1,0.02117597]
[1766030196021,5.4299,2836.4,2836.1,0.02117597]
[1766030196349,5.4309,2836.5,2836.0,0.557]
[1766030198732,0.001,2836.5,2836.0,0.559]
[1766030198937,5.4299,2836.4,2836.0,0.559]
[1766030202248,5.262,2836.5,2836.0,0.559]
[1766030202754,0.001,2836.5,2836.0,0.559]
[1766030202943,0.001,2836.5,2836.0,1.02554909]
[1766030205832,5.261,2836.4,2836.0,1.02554909]
[1766030206232,0.001,2836.5,2836.0,1.02554909]
[1766030206733,0.001,2836.5,2836.1,0.02117597]
[1766030207828,0.001,2836.7,2836.1,0.02117597]
[1766030208157,0.001,2836.7,2836.1,1.4937268]
[1766030208559,0.001,2836.7,2836.1,0.43392015]
[1766030208722,0.001,2836.7,2836.2,1.05978044]
[1766030211743,0.001,2836.7,2835.8,0.002]
[1766030211744,1.2256,2836.2,2835.8,0.002]
[1766030211965,5.261,2836.1,2835.9,1.05978044]
[1766030212275,1.2256,2836.5,2835.8,0.002]
[1766030212453,1.2256,2836.3,2835.9,1.05988902]
[1766030212772,5.261,2836.3,2835.9,1.05988902]
[1766030213150,6.72835293,2836.7,2835.9,1.05988902]
[1766030213480,4.0354,2836.6,2836.0,0.02117597]
[1766030213698,5.261,2836.6,2836.0,0.02117597]
[1766030216583,5.261,2836.6,2836.1,1.05979542]
[1766030216748,0.001,2836.7,2836.1,1.05979542]
[1766030217248,1.2256,2836.5,2836.1,1.05979542]
[1766030217449,5.261,2836.4,2836.0,0.58017597]
[1766030217644,5.261,2836.4,2836.0,1.61879542]
[1766030217872,5.261,2836.6,2836.0,0.559]
[1766030218347,4.0354,2836.4,2836.0,0.559]
[1766030218548,4.0354,2836.4,2835.9,1.0598366]
[1766030218549,7.13089293,2836.4,2835.9,1.0598366]
[1766030218779,5.261,2836.2,2835.8,0.002]
[1766030219345,5.261,2836.4,2835.8,0.002]
[1766030219549,7.2113664,2836.4,2835.8,0.002]
[1766030219947,1.9503664,2836.4,2835.8,0.002]
[1766030220169,1.2256,2836.2,2835.8,0.002]
[1766030220359,5.261,2836.2,2835.8,0.002]
[1766030220682,8.67771933,2836.4,2835.8,0.002]
[1766030220886,1.2256,2836.1,2835.8,0.002]
[1766030221180,5.261,2836.0,2835.8,0.002]
[1766030222574,5.261,2836.3,2835.8,0.002]
[1766030222954,3.52560682,2836.4,2835.8,0.002]
[1766030223154,5.261,2836.3,2835.8,0.002]
[1766030223364,3.52560682,2836.4,2835.8,0.002]
[1766030223565,5.261,2836.2,2835.8,0.002]
[1766030224788,4.94989995,2836.4,2835.8,0.002]
[1766030225087,10.21089995,2836.4,2835.8,0.002]
[1766030225283,4.94989995,2836.4,2835.8,0.002]
[1766030225483,5.261,2836.3,2835.8,0.002]
[1766030225856,4.0354,2836.3,2835.8,0.002]
[1766030226056,5.261,2836.2,2835.8,0.002]
[1766030226981,0.46438023,2836.4,2835.8,0.002]
[1766030227177,5.72538023,2836.4,2835.8,0.002]
[1766030228390,0.46438023,2836.4,2835.8,0.002]
[1766030228559,5.261,2836.3,2835.8,0.002]
[1766030231185,5.262,2836.3,2835.8,0.002]
[1766030231363,0.001,2836.3,2835.8,0.002]
[1766030231564,0.001,2836.3,2835.8,0.46295812]
[1766030231785,5.3375,2836.3,2835.8,0.46295812]
[1766030232679,5.3375,2836.3,2835.8,0.002]
[1766030234499,0.001,2836.3,2835.8,0.002]
[1766030234698,5.2609,2836.3,2835.8,0.002]
[1766030234993,5.2609,2836.3,2835.4,3.52682386]
[1766030234994,4.0681,2836.1,2835.4,0.02117597]
[1766030235159,5.2599,2836.1,2835.6,0.02117597]
[1766030237565,5.2599,2836.0,2835.6,0.02117597]
[1766030238964,3.52677731,2836.3,2835.6,0.02117597]
[1766030238965,0.001,2836.7,2835.9,0.02117597]
[1766030239202,0.001,2836.7,2836.4,0.02117597]
[1766030239385,4.0691,2836.7,2836.4,0.02117597]
[1766030239904,4.0691,2836.7,2836.3,0.558]
[1766030240982,5.2599,2836.6,2836.3,0.558]
[1766030241900,4.0681,2836.6,2836.3,0.558]
[1766030243503,4.0691,2836.7,2836.3,0.558]
[1766030243801,5.2609,2836.7,2836.3,0.558]
[1766030246876,0.001,2836.7,2836.3,0.558]
[1766030247073,5.2599,2836.6,2836.3,0.558]
[1766030248105,0.001,2836.7,2836.3,0.56]
[1766030248307,0.001,2836.7,2836.3,0.97070932]
[1766030249994,0.001,2836.7,2836.3,0.56]
[1766030250404,4.0691,2836.7,2836.3,0.56]
[1766030250718,4.0691,2836.7,2836.1,0.02117597]
[1766030250719,4.0681,2836.6,2836.1,0.02117597]
[1766030251013,5.2599,2836.3,2836.1,1.08096016]
[1766030251215,4.0681,2836.3,2836.1,1.08096016]
[1766030251387,4.0681,2836.4,2836.1,1.08096016]
[1766030251582,5.2599,2836.4,2836.1,1.08096016]
[1766030252119,5.2599,2836.4,2836.1,1.05978419]
[1766030256497,1.1918,2836.4,2836.1,1.05978419]
[1766030256698,5.2599,2836.3,2836.1,1.05978419]
[1766030257826,4.0681,2836.3,2836.1,1.05978419]
[1766030257998,5.2599,2836.4,2836.1,1.57650151]
[1766030259327,5.2599,2836.4,2836.1,1.05978419]
[1766030260214,5.2599,2836.6,2836.1,1.08096016]
[1766030260596,0.001,2836.7,2836.1,1.08096016]
[1766030260923,5.2599,2836.5,2836.1,1.08096016]
[1766030261830,1.1918,2836.5,2836.1,1.08096016]
[1766030262128,4.3678,2836.4,2836.1,1.08096016]
[1766030262307,5.6484,2836.4,2836.1,1.05978419]
[1766030263732,4.3678,2836.4,2836.1,1.05978419]
[1766030265335,4.3688,2836.4,2836.1,1.05978419]
[1766030266203,0.001,2836.4,2836.1,1.05978419]
[1766030266832,4.3688,2836.4,2836.1,1.05978419]
[1766030267229,3.52624126,2836.7,2836.1,1.08096016]
[1766030267230,0.001,2836.7,2836.1,1.08096016]
[1766030267533,0.001,2836.7,2836.3,0.02117597]
[1766030268236,4.3688,2836.7,2836.3,0.02117597]
[1766030268409,5.6494,2836.7,2836.3,0.02117597]
[1766030268827,5.6484,2836.6,2836.3,0.02117597]
[1766030269405,4.3678,2836.5,2836.2,0.14130655]
[1766030269738,5.6484,2836.5,2836.2,0.14130655]
[1766030270433,0.001,2836.7,2836.0,0.56]
[1766030270434,5.6484,2836.6,2836.0,0.56]
[1766030270633,5.6484,2836.2,2836.0,0.56]
[1766030271139,4.3678,2836.3,2836.0,0.56]
[1766030271310,5.6484,2836.3,2836.0,0.56]
[1766030278737,4.3678,2836.2,2836.0,0.56]
[1766030279546,5.6484,2836.2,2836.0,0.56]
[1766030281436,5.6484,2836.1,2835.8,0.56]
[1766030281638,0.91750099,2836.2,2835.6,0.02117597]
[1766030281940,4.3678,2836.3,2835.6,0.58117597]
[1766030282239,7.60932916,2836.4,2835.6,0.56]
[1766030282438,3.5257606,2836.3,2835.6,0.56]
[1766030282636,1.2806,2836.1,2836.0,0.002]
[1766030282814,5.6484,2836.1,2836.0,0.002]
[1766030284222,0.91741606,2836.1,2836.0,0.002]
[1766030284424,5.6484,2836.2,2836.0,0.002]
[1766030284638,5.6484,2836.1,2836.0,0.002]
[1766030285220,5.6484,2836.1,2835.6,0.58117597]
[1766030286239,1.2806,2836.0,2835.6,0.58117597]
[1766030286446,5.6484,2836.0,2835.6,0.58117597]
[1766030286839,1.2806,2836.0,2835.6,0.58117597]
[1766030287025,5.6484,2835.9,2835.6,0.58117597]
[1766030290160,1.2806,2835.9,2835.6,0.58117597]
[1766030290342,4.3678,2835.8,2835.6,0.58117597]
[1766030290651,0.001,2837.0,2835.7,15.01765057]
[1766030290856,0.557,2836.8,2835.9,0.405504]
[1766030291353,0.557,2836.8,2836.0,0.557]
[1766030292438,0.557,2836.8,2836.1,7.0519375]
[1766030293244,0.557,2836.8,2836.2,1.05964568]
[1766030293928,0.557,2836.8,2836.1,3.52596875]
[1766030294133,0.557,2836.8,2835.1,0.002]
[1766030294134,4.4758,2836.3,2835.1,0.002]
[1766030294329,0.559,2836.2,2835.7,4.58625323]
[1766030294653,3.52599487,2836.9,2835.8,0.81128204]
[1766030294654,0.559,2836.1,2835.8,0.81128204]
[1766030295653,0.559,2836.0,2835.8,0.81128204]
[1766030296830,0.559,2836.0,2835.9,3.52621742]
[1766030298329,0.559,2836.0,2835.8,4.33757033]
[1766030305473,0.559,2836.0,2835.8,0.81328204]
[1766030305649,0.56,2836.0,2835.8,0.002]
[1766030306888,0.56,2836.0,2835.5,1.06190775]
[1766030307043,1.2984,2835.7,2835.5,0.002]
[1766030307242,6.3322,2835.6,2835.5,0.002]
[1766030307470,0.558,2835.6,2835.5,0.002]
[1766030309139,0.558,2835.6,2835.5,0.707584]
[1766030309448,5.7752,2836.0,2835.5,4.23429886]
[1766030309647,0.558,2835.9,2835.5,4.23429886]
[1766030309861,0.001,2836.0,2835.5,4.23429886]
[1766030310057,0.558,2835.9,2835.5,4.23429886]
[1766030310253,0.001,2836.0,2835.6,0.73256857]
[1766030310463,5.7742,2836.5,2835.7,6.72758839]
[1766030310968,0.46438023,2836.6,2835.7,6.72758839]
[1766030311173,5.7742,2836.5,2835.7,6.72758839]
[1766030311540,0.558,2836.4,2835.8,3.52634177]
[1766030311772,6.3322,2836.4,2835.9,0.705584]
[1766030312089,1.2984,2836.6,2835.9,0.705584]
[1766030312270,1.02238023,2836.5,2835.9,0.705584]
[1766030312838,5.0338,2836.5,2835.9,0.705584]
[1766030313069,6.3322,2836.5,2835.9,0.705584]
[1766030313870,6.3322,2836.5,2835.9,4.23173101]
[1766030315370,0.558,2836.4,2835.9,4.23173101]
[1766030315542,5.0338,2836.4,2835.9,4.23173101]
[1766030315735,5.0338,2836.4,2835.9,3.52614701]
[1766030315940,4.4758,2836.4,2835.8,0.002]
[1766030316142,0.558,2836.3,2835.8,0.002]
[1766030317081,4.4758,2836.4,2835.8,0.002]
[1766030317373,0.558,2836.3,2835.8,0.002]
[1766030317545,0.558,2836.3,2835.8,0.7075181]
[1766030319269,4.4758,2836.4,2835.9,3.52621742]
[1766030319471,0.558,2836.3,2835.9,3.52621742]
[1766030321947,0.558,2836.3,2835.9,3.52821742]
[1766030322648,0.558,2836.2,2835.9,3.52821742]
[1766030322849,0.558,2836.2,2835.9,4.26085189]
[1766030327972,5.6522,2836.4,2835.9,4.26085189]
[1766030328171,0.558,2836.1,2835.9,3.52821742]
[1766030329982,0.558,2836.1,2835.9,0.002]
[1766030331490,0.558,2836.0,2835.9,0.002]
[1766030332765,1.9536,2836.0,2835.9,0.002]
[1766030332966,4.2556,2835.8,2835.5,0.002]
[1766030333160,0.42556,2835.7,2835.3,1.05998639]
[1766030333393,0.558,2836.0,2835.3,1.05998639]
[1766030333394,5.6512,2835.5,2835.3,1.05998639]
[1766030333691,4.8136,2835.4,2835.3,1.05998639]
[1766030333880,0.558,2835.4,2835.1,0.002]
[1766030334192,0.558,2835.4,2835.1,0.02317597]
[1766030334494,0.558,2835.4,2835.1,3.55037726]
[1766030334796,0.558,2835.4,2835.2,0.35523773]
[1766030337982,0.558,2835.4,2835.2,3.88231657]
[1766030339293,5.6512,2835.9,2835.3,0.02117597]
[1766030339602,6.2092,2835.8,2835.3,6.74876436]
[1766030339801,0.558,2835.7,2835.5,0.02117597]
[1766030340682,0.558,2835.6,2835.5,0.02117597]
[1766030340882,5.6512,2836.0,2835.5,0.02117597]
[1766030341092,0.558,2835.9,2835.5,1.05085256]
[1766030341400,4.2556,2836.0,2835.5,1.05085256]
[1766030341596,0.558,2835.9,2835.5,1.05085256]
[1766030342320,4.8136,2835.9,2835.5,0.02117597]
[1766030342489,1.9536,2835.9,2835.5,0.02117597]
[1766030342687,5.6512,2835.8,2835.5,0.02117597]
[1766030343204,4.2556,2835.8,2835.5,0.02117597]
[1766030343405,4.8136,2835.9,2835.5,0.02117597]
[1766030344382,6.2092,2835.9,2835.5,0.02117597]
[1766030345504,5.6512,2835.8,2835.5,0.02117597]
[1766030347801,5.6512,2835.8,2835.5,0.02317597]
[1766030350714,1.3956,2835.8,2835.5,0.02317597]
[1766030350894,4.5183,2835.7,2835.5,0.02317597]
[1766030351083,6.4625,2835.9,2835.5,0.02317597]
[1766030352423,1.4063,2835.7,2835.5,0.002]
[1766030352580,4.9711,2835.9,2835.5,0.002]
[1766030353012,6.3774,2835.9,2835.5,0.002]
[1766030353611,4.9711,2835.9,2835.6,0.02117597]
[1766030353788,6.3774,2835.9,2835.6,0.02117597]
[1766030353996,4.4131,2835.8,2835.5,0.002]
[1766030354819,1.4063,2835.6,2835.3,1.06007629]
[1766030355018,0.558,2835.5,2835.1,3.55034197]
[1766030355218,5.8194,2835.3,2835.2,1.06011375]
[1766030355389,4.4131,2835.3,2835.2,1.06011375]
[1766030355583,5.8194,2835.4,2835.2,1.06011375]
[1766030355983,1.4063,2835.3,2835.0,0.002]
[1766030356186,4.9711,2835.5,2835.0,0.002]
[1766030356387,0.558,2835.4,2835.1,3.54837265]
[1766030356593,5.8194,2835.7,2835.5,0.002]
[1766030356801,1.13994,2835.6,2835.5,0.002]
[1766030357000,6.3774,2835.6,2835.5,0.002]
[1766030357196,3.52707826,2836.1,2835.5,0.002]
[1766030357197,0.001,2836.1,2835.5,0.002]
[1766030357413,0.558,2836.0,2835.8,7.48058839]
[1766030357713,0.001,2836.1,2835.8,7.48058839]
[1766030357910,0.559,2836.1,2835.8,6.72758839]
[1766030358109,0.559,2836.1,2835.9,0.21617597]
[1766030358313,0.46438023,2836.3,2835.9,0.21617597]
[1766030358615,5.8204,2836.4,2835.9,0.21617597]
[1766030359718,0.001,2836.4,2835.9,0.02117597]
[1766030360217,4.4131,2836.3,2835.9,0.02117597]
[1766030360399,5.8194,2836.2,2835.9,0.02117597]
[1766030360911,5.8194,2836.2,2835.7,0.26017597]
[1766030361121,4.4131,2836.1,2835.8,0.39280633]
[1766030361807,1.4063,2836.2,2835.8,0.39280633]
[1766030362004,5.8194,2836.2,2835.8,0.39280633]
[1766030364824,1.4063,2836.2,2835.8,0.39280633]
[1766030365124,5.8194,2836.1,2835.8,0.39280633]
[1766030365508,4.4141,2836.2,2835.8,0.39280633]
[1766030365709,4.4141,2836.2,2835.7,0.26017597]
[1766030365899,5.8204,2836.2,2835.7,0.26017597]
[1766030368203,4.4131,2836.1,2835.7,0.26017597]
[1766030368820,5.8194,2836.1,2835.7,0.26017597]
[1766030369716,0.001,2836.2,2835.7,0.02117597]
[1766030369717,5.8194,2835.9,2835.7,0.02117597]
[1766030369917,4.4131,2835.8,2835.7,0.02117597]
[1766030370099,1.4063,2836.0,2835.7,0.02117597]
[1766030370434,5.8194,2835.9,2835.7,0.02117597]
[1766030373304,0.001,2836.2,2835.5,0.58117597]
[1766030373506,3.52695984,2836.2,2835.5,0.02317597]
[1766030373706,4.4131,2835.8,2835.5,0.02317597]
[1766030373904,5.8194,2835.7,2835.6,0.002]
[1766030375338,4.4131,2835.7,2835.6,0.002]
[1766030377442,4.4131,2835.4,2835.2,0.558]
[1766030377609,1.4063,2835.5,2835.2,0.558]
[1766030377610,5.8194,2835.5,2835.2,0.558]
[1766030377816,4.4131,2835.5,2835.2,0.558]
[1766030378010,4.4131,2835.6,2835.2,4.08506097]
[1766030378216,5.8194,2835.6,2835.2,4.08506097]
[1766030378548,5.8194,2835.5,2835.2,4.08506097]
[1766030378719,5.8194,2835.5,2835.2,0.558]
[1766030379039,1.4063,2835.7,2835.2,4.08508393]
[1766030379340,4.4131,2835.5,2835.2,4.08508393]
[1766030379538,4.4131,2835.5,2835.2,0.558]
[1766030379838,5.8194,2835.5,2835.2,0.558]
[1766030380942,1.4063,2835.5,2835.2,0.558]
[1766030381256,5.8194,2835.5,2835.2,0.558]
[1766030382043,1.3588,2835.7,2835.2,0.7959]
[1766030382238,5.8742,2835.6,2835.2,0.7959]
[1766030382543,5.8742,2835.5,2835.2,0.558]
[1766030383410,5.8742,2835.9,2835.3,0.02117597]
[1766030383610,5.8742,2835.9,2835.3,0.26027597]
[1766030383815,5.8742,2835.8,2835.3,0.26027597]
[1766030384342,0.46438023,2836.1,2835.5,0.02117597]
[1766030384740,4.5154,2836.0,2835.5,0.02117597]
[1766030384946,5.8742,2835.8,2835.5,0.02117597]
[1766030387188,3.9903953,2836.1,2835.5,0.02117597]
[1766030387319,5.8742,2836.0,2835.5,0.25907597]
[1766030387518,4.5154,2835.9,2835.5,0.25907597]
[1766030387719,4.74212217,2836.1,2835.5,0.02117597]
[1766030388145,5.8742,2836.0,2835.5,0.02117597]
[1766030388450,4.74212217,2836.1,2835.5,0.02117597]
[1766030388630,5.8742,2835.8,2835.5,0.02117597]
[1766030388829,5.8742,2835.7,2835.5,0.02117597]
[1766030389143,0.82689956,2836.0,2835.5,0.02117597]